[Event "Titled Tuesday Blitz June 6 Early 2023"]
[White "Gubajdullin, Alexei"]
[Black "ArchibaldCerveza29"]
[WhiteFideId "4141202"]
[WhiteElo "2279"]
[BlackElo "2430"]
[Result "0-1"]
[Round "4"]
[TimeControl "180+2"]
[Date "2023.06.06"]
[WhiteClock "0:00:15"]
[BlackClock "0:00:22"]
[Board "79"]

1. d4 {[%clk 0:02:59]}  Nf6 {[%clk 0:02:54]} 2. Nf3 {[%clk 0:02:59]}  d5 {[%clk 0:02:51]} 3. Bf4 {[%clk 0:02:58]}  c5 {[%clk 0:02:50]} 4. e3 {[%clk 0:02:59]}  Nc6 {[%clk 0:02:49]} 5. Nbd2 {[%clk 0:02:59]}  cxd4 {[%clk 0:02:49]} 6. exd4 {[%clk 0:02:58]}  Bf5 {[%clk 0:02:49]} 7. c3 {[%clk 0:02:59]}  e6 {[%clk 0:02:47]} 8. Qb3 {[%clk 0:02:59]}  Bd6 {[%clk 0:02:44]} 9. Bxd6 {[%clk 0:02:34]}  Qxd6 {[%clk 0:02:44]} 10. a4 {[%clk 0:02:34]}  O-O {[%clk 0:02:43]} 11. Be2 {[%clk 0:02:33]}  b6 {[%clk 0:02:37]} 12. O-O {[%clk 0:02:33]}  h6 {[%clk 0:02:33]} 13. Qa3 {[%clk 0:02:30]}  Qc7 {[%clk 0:02:29]} 14. Rfe1 {[%clk 0:02:26]}  Rfc8 {[%clk 0:02:26]} 15. Bb5 {[%clk 0:02:25]}  a6 {[%clk 0:02:22]} 16. Bxc6 {[%clk 0:02:22]}  Qxc6 {[%clk 0:02:23]} 17. Ne5 {[%clk 0:02:22]}  Qc7 {[%clk 0:02:23]} 18. a5 {[%clk 0:02:21]}  b5 {[%clk 0:02:21]} 19. Nb3 {[%clk 0:02:20]}  Ne4 {[%clk 0:02:18]} 20. f3 {[%clk 0:02:16]}  Nd6 {[%clk 0:02:17]} 21. Nc5 {[%clk 0:02:15]}  Nc4 {[%clk 0:02:16]} 22. Nxc4 {[%clk 0:01:53]}  bxc4 {[%clk 0:02:17]} 23. b4 {[%clk 0:01:49]}  cxb3 {[%clk 0:02:14]} 24. Qxb3 {[%clk 0:01:49]}  Rab8 {[%clk 0:02:13]} 25. Qa3 {[%clk 0:01:49]}  Qc6 {[%clk 0:02:06]} 26. Re2 {[%clk 0:01:46]}  Rb5 {[%clk 0:02:03]} 27. Rb2 {[%clk 0:01:45]}  Rcb8 {[%clk 0:02:03]} 28. Rxb5 {[%clk 0:01:43]}  Rxb5 {[%clk 0:02:04]} 29. Qc1 {[%clk 0:01:42]}  Qc8 {[%clk 0:01:35]} 30. h4 {[%clk 0:01:40]}  Qc7 {[%clk 0:01:18]} 31. Nxa6 {[%clk 0:01:28]}  Qa7 {[%clk 0:01:12]} 32. Nc5 {[%clk 0:01:14]}  Rxa5 {[%clk 0:01:11]} 33. Rxa5 {[%clk 0:01:14]}  Qxa5 {[%clk 0:01:12]} 34. h5 {[%clk 0:01:12]}  Qa2 {[%clk 0:01:08]} 35. Qe3 {[%clk 0:01:07]}  Qc2 {[%clk 0:00:56]} 36. Kh2 {[%clk 0:01:06]}  Kh7 {[%clk 0:00:49]} 37. Nd7 {[%clk 0:01:04]}  Qb1 {[%clk 0:00:35]} 38. Ne5 {[%clk 0:00:56]}  Kg8 {[%clk 0:00:35]} 39. Qd2 {[%clk 0:00:45]}  Qc2 {[%clk 0:00:34]} 40. Qe1 {[%clk 0:00:37]}  Qb1 {[%clk 0:00:33]} 41. Qh4 {[%clk 0:00:35]}  Qb8 {[%clk 0:00:22]} 42. Qg3 {[%clk 0:00:21]}  f6 {[%clk 0:00:19]} 43. Nd7 {[%clk 0:00:21]}  Qxg3+ {[%clk 0:00:19]} 44. Kxg3 {[%clk 0:00:21]}  Kf7 {[%clk 0:00:20]} 45. Nc5 {[%clk 0:00:21]}  Ke7 {[%clk 0:00:20]} 46. Kf4 {[%clk 0:00:21]}  Kd6 {[%clk 0:00:20]} 47. g4 {[%clk 0:00:21]}  Bc2 {[%clk 0:00:20]} 48. Ke3 {[%clk 0:00:21]}  Bd1 {[%clk 0:00:21]} 49. Na6 {[%clk 0:00:20]}  e5 {[%clk 0:00:20]} 50. Nb4 {[%clk 0:00:20]}  Bb3 {[%clk 0:00:19]} 51. Nd3 {[%clk 0:00:20]}  Bc2 {[%clk 0:00:18]} 52. Nf2 {[%clk 0:00:20]}  Bb1 {[%clk 0:00:18]} 53. Nh1 {[%clk 0:00:21]}  Ke6 {[%clk 0:00:16]} 54. Ng3 {[%clk 0:00:21]}  Bc2 {[%clk 0:00:17]} 55. f4 {[%clk 0:00:21]}  Bd1 {[%clk 0:00:15]} 56. dxe5 {[%clk 0:00:12]}  fxe5 {[%clk 0:00:16]} 57. Nf5 {[%clk 0:00:12]}  Bxg4 {[%clk 0:00:15]} 58. Nxg7+ {[%clk 0:00:12]}  Kf7 {[%clk 0:00:14]} 59. fxe5 {[%clk 0:00:09]}  Kxg7 {[%clk 0:00:15]} 60. Kd4 {[%clk 0:00:10]}  Be6 {[%clk 0:00:15]} 61. Ke3 {[%clk 0:00:09]}  Kf7 {[%clk 0:00:15]} 62. Kf4 {[%clk 0:00:08]}  Bd7 {[%clk 0:00:15]} 63. Ke3 {[%clk 0:00:09]}  Ke6 {[%clk 0:00:15]} 64. Kd4 {[%clk 0:00:09]}  Bb5 {[%clk 0:00:15]} 65. Kc5 {[%clk 0:00:09]}  Bc4 {[%clk 0:00:16]} 66. Kd4 {[%clk 0:00:10]}  Ba2 {[%clk 0:00:17]} 67. Ke3 {[%clk 0:00:09]}  Kxe5 {[%clk 0:00:17]} 68. Kf3 {[%clk 0:00:09]}  Kf5 {[%clk 0:00:17]} 69. Ke3 {[%clk 0:00:09]}  Kg5 {[%clk 0:00:18]} 70. Kd4 {[%clk 0:00:08]}  Kxh5 {[%clk 0:00:18]} 71. Ke3 {[%clk 0:00:08]}  Kg4 {[%clk 0:00:18]} 72. Kf2 {[%clk 0:00:08]}  Kf4 {[%clk 0:00:19]} 73. Kg2 {[%clk 0:00:09]}  Ke4 {[%clk 0:00:19]} 74. Kh3 {[%clk 0:00:10]}  Kd3 {[%clk 0:00:20]} 75. Kh4 {[%clk 0:00:11]}  Kxc3 {[%clk 0:00:21]} 76. Kh5 {[%clk 0:00:11]}  d4 {[%clk 0:00:21]} 77. Kxh6 {[%clk 0:00:12]}  d3 {[%clk 0:00:22]} 78. Kg5 {[%clk 0:00:13]}  d2 {[%clk 0:00:23]} 79. Kf4 {[%clk 0:00:14]}  d1=Q {[%clk 0:00:23]} 80. Ke5 {[%clk 0:00:15]}  Qd4+ {[%clk 0:00:24]} 81. Kf5 {[%clk 0:00:14]}  Bb1+ {[%clk 0:00:24]} 82. Kg5 {[%clk 0:00:15]}  Qe5+ {[%clk 0:00:23]} 83. Kg4 {[%clk 0:00:15]}  Qf5+ {[%clk 0:00:23]} 84. Kg3 {[%clk 0:00:15]}  Be4 {[%clk 0:00:22]} 85. Kh2 {[%clk 0:00:15]}  Qg6 {[%clk 0:00:21]} 86. Kh3 {[%clk 0:00:15]}  Qg5 {[%clk 0:00:21]} 87. Kh2 {[%clk 0:00:15]}  Qg2# {[%clk 0:00:22]} 0-1


[Site "https://www.chess.com"]

[Event "Titled Tuesday Blitz June 6 Early 2023"]
[White "Mohammed, Zozek Salah Mohammed"]
[Black "Vlassov, Nikolai"]
[WhiteFideId "4803361"]
[BlackFideId "4103360"]
[WhiteElo "2211"]
[BlackElo "2324"]
[Result "0-1"]
[Round "4"]
[TimeControl "180+2"]
[Date "2023.06.06"]
[WhiteClock "0:00:01"]
[BlackClock "0:00:03"]
[Board "82"]

1. d4 {[%clk 0:02:55]}  Nf6 {[%clk 0:02:59]} 2. Nf3 {[%clk 0:02:53]}  e6 {[%clk 0:02:59]} 3. g3 {[%clk 0:02:53]}  b5 {[%clk 0:02:58]} 4. Bg2 {[%clk 0:02:52]}  Bb7 {[%clk 0:02:59]} 5. O-O {[%clk 0:02:53]}  c5 {[%clk 0:02:58]} 6. a4 {[%clk 0:02:52]}  b4 {[%clk 0:02:58]} 7. Bg5 {[%clk 0:02:53]}  Na6 {[%clk 0:02:55]} 8. c3 {[%clk 0:02:48]}  bxc3 {[%clk 0:02:54]} 9. Nxc3 {[%clk 0:02:45]}  cxd4 {[%clk 0:02:53]} 10. Nxd4 {[%clk 0:02:40]}  Bxg2 {[%clk 0:02:52]} 11. Kxg2 {[%clk 0:02:41]}  Be7 {[%clk 0:02:49]} 12. Bxf6 {[%clk 0:02:33]}  Bxf6 {[%clk 0:02:46]} 13. Ne4 {[%clk 0:02:34]}  Be7 {[%clk 0:02:39]} 14. Qd3 {[%clk 0:02:28]}  Nb4 {[%clk 0:02:24]} 15. Qf3 {[%clk 0:02:20]}  O-O {[%clk 0:02:20]} 16. Rfd1 {[%clk 0:02:19]}  Qb6 {[%clk 0:02:02]} 17. a5 {[%clk 0:02:03]}  Qa6 {[%clk 0:01:52]} 18. Nb3 {[%clk 0:01:51]}  d5 {[%clk 0:01:43]} 19. Nec5 {[%clk 0:01:43]}  Qb5 {[%clk 0:01:43]} 20. Rac1 {[%clk 0:01:36]}  Rac8 {[%clk 0:01:40]} 21. Nd3 {[%clk 0:01:23]}  Nxd3 {[%clk 0:01:22]} 22. Qxd3 {[%clk 0:01:21]}  Qb4 {[%clk 0:01:04]} 23. a6 {[%clk 0:00:51]}  g6 {[%clk 0:00:59]} 24. Nd4 {[%clk 0:00:45]}  Qxb2 {[%clk 0:00:53]} 25. Nc6 {[%clk 0:00:39]}  Bf6 {[%clk 0:00:42]} 26. Rc2 {[%clk 0:00:38]}  Qb6 {[%clk 0:00:38]} 27. Rdc1 {[%clk 0:00:38]}  Kg7 {[%clk 0:00:34]} 28. h4 {[%clk 0:00:37]}  h5 {[%clk 0:00:33]} 29. f3 {[%clk 0:00:29]}  Rc7 {[%clk 0:00:33]} 30. e4 {[%clk 0:00:12]}  dxe4 {[%clk 0:00:32]} 31. Qxe4 {[%clk 0:00:12]}  Qxa6 {[%clk 0:00:30]} 32. Nb4 {[%clk 0:00:10]}  Rxc2+ {[%clk 0:00:29]} 33. Rxc2 {[%clk 0:00:09]}  Qb5 {[%clk 0:00:26]} 34. Nd3 {[%clk 0:00:09]}  a5 {[%clk 0:00:20]} 35. Rc7 {[%clk 0:00:09]}  Qb6 {[%clk 0:00:18]} 36. Rd7 {[%clk 0:00:07]}  Kg8 {[%clk 0:00:15]} 37. Nf4 {[%clk 0:00:07]}  Rd8 {[%clk 0:00:10]} 38. Rxd8+ {[%clk 0:00:02]}  Qxd8 {[%clk 0:00:09]} 39. Nxg6 {[%clk 0:00:01]}  fxg6 {[%clk 0:00:09]} 40. Qxg6+ {[%clk 0:00:02]}  Kf8 {[%clk 0:00:09]} 41. Qxh5 {[%clk 0:00:02]}  Ke7 {[%clk 0:00:09]} 42. Qh7+ {[%clk 0:00:02]}  Kd6 {[%clk 0:00:07]} 43. Qd3+ {[%clk 0:00:02]}  Kc7 {[%clk 0:00:07]} 44. Qc4+ {[%clk 0:00:02]}  Kb7 {[%clk 0:00:03]} 45. Qxe6 {[%clk 0:00:01]}  Qb6 {[%clk 0:00:03]} 0-1


[Site "https://www.chess.com"]

[Event "Titled Tuesday Blitz June 6 Early 2023"]
[White "Li, Hui"]
[Black "Lee, Qing Aun"]
[WhiteFideId "15400310"]
[BlackFideId "5804167"]
[WhiteElo "1966"]
[BlackElo "2179"]
[Result "0-1"]
[Round "4"]
[TimeControl "180+2"]
[Date "2023.06.06"]
[WhiteClock "0:00:01"]
[BlackClock "0:00:17"]
[Board "83"]

1. e4 {[%clk 0:02:30]}  c5 {[%clk 0:02:58]} 2. Nf3 {[%clk 0:02:30]}  g6 {[%clk 0:02:59]} 3. d4 {[%clk 0:02:30]}  cxd4 {[%clk 0:03:00]} 4. Nxd4 {[%clk 0:02:31]}  Bg7 {[%clk 0:03:00]} 5. Nc3 {[%clk 0:02:31]}  Nc6 {[%clk 0:03:00]} 6. Be3 {[%clk 0:02:32]}  Nf6 {[%clk 0:03:00]} 7. Bc4 {[%clk 0:02:32]}  O-O {[%clk 0:03:00]} 8. Bb3 {[%clk 0:02:32]}  a6 {[%clk 0:03:00]} 9. f3 {[%clk 0:02:23]}  Qc7 {[%clk 0:03:00]} 10. Qd2 {[%clk 0:02:22]}  b5 {[%clk 0:02:59]} 11. O-O-O {[%clk 0:02:18]}  Bb7 {[%clk 0:02:59]} 12. Kb1 {[%clk 0:02:11]}  Ne5 {[%clk 0:02:46]} 13. Bh6 {[%clk 0:01:56]}  Nc4 {[%clk 0:02:23]} 14. Bxc4 {[%clk 0:01:55]}  bxc4 {[%clk 0:02:24]} 15. Bxg7 {[%clk 0:01:55]}  Kxg7 {[%clk 0:02:23]} 16. Rc1 {[%clk 0:01:43]}  Rab8 {[%clk 0:02:23]} 17. g4 {[%clk 0:01:36]}  Ba8 {[%clk 0:02:21]} 18. Ka1 {[%clk 0:01:27]}  Rfc8 {[%clk 0:02:12]} 19. Nde2 {[%clk 0:01:23]}  Qb6 {[%clk 0:01:53]} 20. b3 {[%clk 0:01:01]}  d6 {[%clk 0:01:51]} 21. h4 {[%clk 0:00:55]}  h5 {[%clk 0:01:46]} 22. gxh5 {[%clk 0:00:51]}  Nxh5 {[%clk 0:01:46]} 23. Qd4+ {[%clk 0:00:47]}  Qxd4 {[%clk 0:01:39]} 24. Nxd4 {[%clk 0:00:48]}  Nf4 {[%clk 0:01:33]} 25. Nce2 {[%clk 0:00:38]}  Nxe2 {[%clk 0:01:28]} 26. Nxe2 {[%clk 0:00:39]}  f5 {[%clk 0:01:25]} 27. Ng3 {[%clk 0:00:21]}  Kf6 {[%clk 0:01:08]} 28. h5 {[%clk 0:00:18]}  f4 {[%clk 0:00:54]} 29. Ne2 {[%clk 0:00:16]}  g5 {[%clk 0:00:47]} 30. Kb2 {[%clk 0:00:16]}  d5 {[%clk 0:00:45]} 31. exd5 {[%clk 0:00:14]}  Bxd5 {[%clk 0:00:45]} 32. Rh3 {[%clk 0:00:10]}  Rb6 {[%clk 0:00:29]} 33. Nc3 {[%clk 0:00:10]}  Be6 {[%clk 0:00:29]} 34. Ne4+ {[%clk 0:00:09]}  Kg7 {[%clk 0:00:28]} 35. Nxg5 {[%clk 0:00:09]}  Bxh3 {[%clk 0:00:27]} 36. Nxh3 {[%clk 0:00:10]}  Rf6 {[%clk 0:00:27]} 37. Rg1+ {[%clk 0:00:08]}  Kh6 {[%clk 0:00:27]} 38. Rg4 {[%clk 0:00:08]}  c3+ {[%clk 0:00:27]} 39. Kc1 {[%clk 0:00:07]}  Re6 {[%clk 0:00:24]} 40. Rg1 {[%clk 0:00:03]}  Rf8 {[%clk 0:00:23]} 41. Ng5 {[%clk 0:00:02]}  Re5 {[%clk 0:00:22]} 42. Ne4 {[%clk 0:00:03]}  Rc8 {[%clk 0:00:19]} 43. Kd1 {[%clk 0:00:02]}  Rxh5 {[%clk 0:00:19]} 44. Ke2 {[%clk 0:00:01]}  Rh2+ {[%clk 0:00:19]} 45. Kd3 {[%clk 0:00:02]}  Rh3 {[%clk 0:00:19]} 46. Rf1 {[%clk 0:00:01]}  e5 {[%clk 0:00:18]} 47. Nxc3 {[%clk 0:00:01]}  Kg6 {[%clk 0:00:17]} 0-1


[Site "https://www.chess.com"]

[Event "Titled Tuesday Blitz June 6 Early 2023"]
[White "Todorovic, Bojan"]
[Black "Aldokhin, Ivan"]
[WhiteFideId "917087"]
[BlackFideId "24115720"]
[WhiteElo "2266"]
[BlackElo "2322"]
[Result "0-1"]
[Round "4"]
[TimeControl "180+2"]
[Date "2023.06.06"]
[WhiteClock "0:00:11"]
[BlackClock "0:00:05"]
[Board "86"]

1. d4 {[%clk 0:02:59]}  Nf6 {[%clk 0:02:59]} 2. c4 {[%clk 0:02:58]}  g6 {[%clk 0:02:59]} 3. Nc3 {[%clk 0:02:57]}  Bg7 {[%clk 0:03:00]} 4. e4 {[%clk 0:02:56]}  d6 {[%clk 0:03:00]} 5. Nf3 {[%clk 0:02:54]}  O-O {[%clk 0:03:00]} 6. Be2 {[%clk 0:02:54]}  Nc6 {[%clk 0:03:01]} 7. O-O {[%clk 0:02:53]}  Re8 {[%clk 0:03:01]} 8. d5 {[%clk 0:02:50]}  Nb4 {[%clk 0:03:00]} 9. a3 {[%clk 0:02:45]}  Na6 {[%clk 0:02:59]} 10. Be3 {[%clk 0:02:41]}  e6 {[%clk 0:02:58]} 11. Nd2 {[%clk 0:02:38]}  exd5 {[%clk 0:02:52]} 12. cxd5 {[%clk 0:02:38]}  Nc5 {[%clk 0:02:41]} 13. f3 {[%clk 0:02:30]}  a5 {[%clk 0:02:36]} 14. Rc1 {[%clk 0:02:27]}  Bd7 {[%clk 0:02:27]} 15. Kh1 {[%clk 0:02:14]}  Nh5 {[%clk 0:02:25]} 16. g4 {[%clk 0:02:00]}  Nf6 {[%clk 0:02:24]} 17. b4 {[%clk 0:01:49]}  axb4 {[%clk 0:02:23]} 18. axb4 {[%clk 0:01:49]}  Na6 {[%clk 0:02:13]} 19. Qb3 {[%clk 0:01:33]}  h6 {[%clk 0:01:43]} 20. Bg1 {[%clk 0:01:30]}  Nh7 {[%clk 0:01:40]} 21. Nb5 {[%clk 0:01:22]}  Ng5 {[%clk 0:01:11]} 22. Na3 {[%clk 0:00:33]}  Nh3 {[%clk 0:01:03]} 23. Be3 {[%clk 0:00:33]}  Qh4 {[%clk 0:00:46]} 24. Nac4 {[%clk 0:00:33]}  f5 {[%clk 0:00:35]} 25. gxf5 {[%clk 0:00:28]}  gxf5 {[%clk 0:00:35]} 26. Rg1 {[%clk 0:00:29]}  Nxg1 {[%clk 0:00:20]} 27. Rxg1 {[%clk 0:00:28]}  Kh7 {[%clk 0:00:18]} 28. Bd3 {[%clk 0:00:28]}  Rg8 {[%clk 0:00:13]} 29. exf5 {[%clk 0:00:25]}  Bf6 {[%clk 0:00:11]} 30. Ne4 {[%clk 0:00:22]}  Rxg1+ {[%clk 0:00:09]} 31. Bxg1 {[%clk 0:00:22]}  Rg8 {[%clk 0:00:08]} 32. Ncd2 {[%clk 0:00:13]}  Bxf5 {[%clk 0:00:05]} 33. Nxf6+ {[%clk 0:00:12]}  Qxf6 {[%clk 0:00:05]} 34. Qc2 {[%clk 0:00:11]}  Bxd3 {[%clk 0:00:04]} 35. Qxd3+ {[%clk 0:00:11]}  Qg6 {[%clk 0:00:05]} 36. Ne4 {[%clk 0:00:11]}  Qxg1# {[%clk 0:00:05]} 0-1


[Site "https://www.chess.com"]

[Event "Titled Tuesday Blitz June 6 Early 2023"]
[White "Yonal, Timur"]
[Black "Bodnaruk, Anastasia"]
[WhiteFideId "44115725"]
[BlackFideId "4181751"]
[WhiteElo "1966"]
[BlackElo "2304"]
[Result "1-0"]
[Round "4"]
[TimeControl "180+2"]
[Date "2023.06.06"]
[WhiteClock "0:00:20"]
[BlackClock "0:00:01"]
[Board "87"]

1. e4 {[%clk 0:02:59]}  c5 {[%clk 0:02:58]} 2. Nf3 {[%clk 0:02:59]}  d6 {[%clk 0:02:58]} 3. Bb5+ {[%clk 0:02:57]}  Nd7 {[%clk 0:02:57]} 4. O-O {[%clk 0:02:57]}  Nf6 {[%clk 0:02:56]} 5. Re1 {[%clk 0:02:57]}  a6 {[%clk 0:02:56]} 6. Bf1 {[%clk 0:02:58]}  b5 {[%clk 0:02:52]} 7. c3 {[%clk 0:02:58]}  Bb7 {[%clk 0:02:51]} 8. d4 {[%clk 0:02:58]}  e6 {[%clk 0:02:46]} 9. Bg5 {[%clk 0:02:45]}  Be7 {[%clk 0:02:45]} 10. Nbd2 {[%clk 0:02:44]}  O-O {[%clk 0:02:44]} 11. Bd3 {[%clk 0:02:40]}  cxd4 {[%clk 0:02:18]} 12. cxd4 {[%clk 0:02:34]}  e5 {[%clk 0:02:18]} 13. d5 {[%clk 0:02:31]}  Nc5 {[%clk 0:02:17]} 14. Bc2 {[%clk 0:02:31]}  a5 {[%clk 0:02:13]} 15. Nh4 {[%clk 0:02:26]}  Nxd5 {[%clk 0:02:03]} 16. Bxe7 {[%clk 0:02:20]}  Nxe7 {[%clk 0:02:02]} 17. Qg4 {[%clk 0:02:19]}  g6 {[%clk 0:01:44]} 18. Rad1 {[%clk 0:02:02]}  Ne6 {[%clk 0:01:29]} 19. Ndf3 {[%clk 0:01:55]}  Qb6 {[%clk 0:00:48]} 20. Bb3 {[%clk 0:01:41]}  Nc5 {[%clk 0:00:40]} 21. Bc2 {[%clk 0:01:38]}  Ne6 {[%clk 0:00:33]} 22. Bb3 {[%clk 0:01:38]}  Bc8 {[%clk 0:00:33]} 23. Qg3 {[%clk 0:01:35]}  Kh8 {[%clk 0:00:31]} 24. Bxe6 {[%clk 0:01:27]}  Bxe6 {[%clk 0:00:30]} 25. Ng5 {[%clk 0:01:27]}  Rad8 {[%clk 0:00:17]} 26. Nxe6 {[%clk 0:01:18]}  fxe6 {[%clk 0:00:17]} 27. Rd2 {[%clk 0:01:16]}  Nc6 {[%clk 0:00:14]} 28. Qh3 {[%clk 0:01:12]}  Kg7 {[%clk 0:00:10]} 29. Qxe6 {[%clk 0:01:11]}  Nd4 {[%clk 0:00:10]} 30. Qe7+ {[%clk 0:01:10]}  Rf7 {[%clk 0:00:10]} 31. Qg5 {[%clk 0:01:07]}  Rc8 {[%clk 0:00:10]} 32. Red1 {[%clk 0:01:01]}  b4 {[%clk 0:00:09]} 33. h3 {[%clk 0:01:01]}  b3 {[%clk 0:00:09]} 34. a3 {[%clk 0:01:00]}  Rc2 {[%clk 0:00:08]} 35. Qe3 {[%clk 0:00:57]}  Qc5 {[%clk 0:00:07]} 36. Nf5+ {[%clk 0:00:36]}  Nxf5 {[%clk 0:00:03]} 37. Qxc5 {[%clk 0:00:35]}  dxc5 {[%clk 0:00:04]} 38. exf5 {[%clk 0:00:35]}  Rxd2 {[%clk 0:00:04]} 39. Rxd2 {[%clk 0:00:32]}  gxf5 {[%clk 0:00:04]} 40. Rd5 {[%clk 0:00:32]}  Rc7 {[%clk 0:00:04]} 41. Rxe5 {[%clk 0:00:32]}  Kf6 {[%clk 0:00:04]} 42. Re3 {[%clk 0:00:31]}  c4 {[%clk 0:00:04]} 43. Rc3 {[%clk 0:00:30]}  a4 {[%clk 0:00:05]} 44. Kf1 {[%clk 0:00:31]}  Ke5 {[%clk 0:00:05]} 45. Ke2 {[%clk 0:00:31]}  Kd4 {[%clk 0:00:05]} 46. Kd2 {[%clk 0:00:31]}  Re7 {[%clk 0:00:05]} 47. Rg3 {[%clk 0:00:27]}  f4 {[%clk 0:00:02]} 48. Rf3 {[%clk 0:00:27]}  Ke4 {[%clk 0:00:03]} 49. Kc3 {[%clk 0:00:22]}  Rd7 {[%clk 0:00:04]} 50. Kxc4 {[%clk 0:00:20]}  Rd2 {[%clk 0:00:03]} 51. Kc3 {[%clk 0:00:20]}  Rc2+ {[%clk 0:00:04]} 52. Kb4 {[%clk 0:00:20]}  Rxb2 {[%clk 0:00:04]} 53. Kxa4 {[%clk 0:00:21]}  Rb1 {[%clk 0:00:02]} 54. Rxb3 {[%clk 0:00:21]}  Rg1 {[%clk 0:00:01]} 55. g3 {[%clk 0:00:21]}  f3 {[%clk 0:00:01]} 56. Re3+ {[%clk 0:00:20]}  Kd4 {[%clk 0:00:02]} 57. Rxf3 {[%clk 0:00:21]}  Rb1 {[%clk 0:00:02]} 58. Rf4+ {[%clk 0:00:21]}  Kc3 {[%clk 0:00:02]} 59. h4 {[%clk 0:00:21]}  Kd3 {[%clk 0:00:02]} 60. h5 {[%clk 0:00:21]}  Rb7 {[%clk 0:00:01]} 61. h6 {[%clk 0:00:20]} 1-0


[Site "https://www.chess.com"]

[Event "Titled Tuesday Blitz June 6 Early 2023"]
[White "Sielecki, Christof"]
[Black "rikchessmx"]
[WhiteFideId "4620437"]
[WhiteElo "2443"]
[BlackElo "2298"]
[Result "1-0"]
[Round "4"]
[TimeControl "180+2"]
[Date "2023.06.06"]
[WhiteClock "0:00:56"]
[BlackClock "0:00:01"]
[Board "88"]

1. e4 {[%clk 0:03:00]}  c6 {[%clk 0:00:08]} 2. d4 {[%clk 0:03:00]}  d6 {[%clk 0:00:09]} 3. f4 {[%clk 0:02:51]}  g6 {[%clk 0:00:09]} 4. Nc3 {[%clk 0:02:50]}  Bg7 {[%clk 0:00:10]} 5. Nf3 {[%clk 0:02:44]}  Qc7 {[%clk 0:00:11]} 6. Bd3 {[%clk 0:02:36]}  Nd7 {[%clk 0:00:12]} 7. e5 {[%clk 0:02:32]}  Nh6 {[%clk 0:00:10]} 8. O-O {[%clk 0:02:29]}  O-O {[%clk 0:00:10]} 9. Qe2 {[%clk 0:02:26]}  b5 {[%clk 0:00:11]} 10. a3 {[%clk 0:02:20]}  Rb8 {[%clk 0:00:10]} 11. Bd2 {[%clk 0:02:18]}  a5 {[%clk 0:00:10]} 12. Ne4 {[%clk 0:02:18]}  b4 {[%clk 0:00:10]} 13. axb4 {[%clk 0:02:18]}  axb4 {[%clk 0:00:11]} 14. Neg5 {[%clk 0:02:10]}  c5 {[%clk 0:00:10]} 15. e6 {[%clk 0:02:07]}  Nf6 {[%clk 0:00:10]} 16. exf7+ {[%clk 0:01:55]}  Nxf7 {[%clk 0:00:06]} 17. Nxf7 {[%clk 0:01:52]}  Rxf7 {[%clk 0:00:06]} 18. Ng5 {[%clk 0:01:52]}  Rf8 {[%clk 0:00:06]} 19. Ne6 {[%clk 0:01:51]}  Bxe6 {[%clk 0:00:06]} 20. Qxe6+ {[%clk 0:01:52]}  Kh8 {[%clk 0:00:06]} 21. f5 {[%clk 0:01:43]}  g5 {[%clk 0:00:06]} 22. Rae1 {[%clk 0:01:38]}  cxd4 {[%clk 0:00:06]} 23. Qxe7 {[%clk 0:01:34]}  Qc5 {[%clk 0:00:05]} 24. Qe6 {[%clk 0:01:19]}  b3 {[%clk 0:00:05]} 25. cxb3 {[%clk 0:01:14]}  Rfe8 {[%clk 0:00:05]} 26. Qc4 {[%clk 0:01:11]}  Rxe1 {[%clk 0:00:02]} 27. Rxe1 {[%clk 0:01:11]}  h6 {[%clk 0:00:03]} 28. b4 {[%clk 0:01:00]}  Qb6 {[%clk 0:00:01]} 29. Qf7 {[%clk 0:00:56]} 1-0


[Site "https://www.chess.com"]

[Event "Titled Tuesday Blitz June 6 Early 2023"]
[White "Kvaloy, Aksel Bu"]
[Black "Abrosimov, Vladimir"]
[WhiteFideId "1528815"]
[BlackFideId "4166892"]
[WhiteElo "2318"]
[BlackElo "2336"]
[Result "1-0"]
[Round "4"]
[TimeControl "180+2"]
[Date "2023.06.06"]
[WhiteClock "0:00:47"]
[BlackClock "0:00:06"]
[Board "89"]

1. e4 {[%clk 0:03:00]}  c5 {[%clk 0:02:57]} 2. Nf3 {[%clk 0:02:59]}  d6 {[%clk 0:02:57]} 3. d4 {[%clk 0:02:52]}  cxd4 {[%clk 0:02:57]} 4. Nxd4 {[%clk 0:02:53]}  Nf6 {[%clk 0:02:57]} 5. Nc3 {[%clk 0:02:54]}  a6 {[%clk 0:02:58]} 6. Bg5 {[%clk 0:02:53]}  e6 {[%clk 0:02:58]} 7. f4 {[%clk 0:02:54]}  Be7 {[%clk 0:02:58]} 8. Qf3 {[%clk 0:02:53]}  Qc7 {[%clk 0:02:59]} 9. O-O-O {[%clk 0:02:53]}  Nbd7 {[%clk 0:02:59]} 10. g4 {[%clk 0:02:53]}  b5 {[%clk 0:02:59]} 11. Bxf6 {[%clk 0:02:54]}  Bxf6 {[%clk 0:02:56]} 12. Bxb5 {[%clk 0:02:53]}  Bxd4 {[%clk 0:02:46]} 13. Bxd7+ {[%clk 0:02:52]}  Bxd7 {[%clk 0:02:46]} 14. Rxd4 {[%clk 0:02:53]}  Rb8 {[%clk 0:02:43]} 15. Rhd1 {[%clk 0:02:51]}  Qb6 {[%clk 0:02:34]} 16. b3 {[%clk 0:02:47]}  O-O {[%clk 0:02:24]} 17. Rxd6 {[%clk 0:02:47]}  Bc6 {[%clk 0:02:24]} 18. Qd3 {[%clk 0:02:43]}  Qc7 {[%clk 0:02:24]} 19. Qc4 {[%clk 0:02:42]}  Rbc8 {[%clk 0:02:15]} 20. e5 {[%clk 0:02:41]}  Qb7 {[%clk 0:02:13]} 21. Qd4 {[%clk 0:02:36]}  h6 {[%clk 0:02:07]} 22. h4 {[%clk 0:02:30]}  Qc7 {[%clk 0:01:54]} 23. Kb2 {[%clk 0:02:24]}  Bf3 {[%clk 0:01:52]} 24. Rg1 {[%clk 0:02:19]}  Bc6 {[%clk 0:01:50]} 25. h5 {[%clk 0:02:18]}  Kh8 {[%clk 0:01:30]} 26. g5 {[%clk 0:02:16]}  Rcd8 {[%clk 0:01:28]} 27. gxh6 {[%clk 0:02:14]}  gxh6 {[%clk 0:01:27]} 28. f5 {[%clk 0:02:14]}  Rxd6 {[%clk 0:01:19]} 29. exd6+ {[%clk 0:02:14]}  e5 {[%clk 0:01:15]} 30. Qxe5+ {[%clk 0:02:13]}  f6 {[%clk 0:01:15]} 31. Qxf6+ {[%clk 0:02:11]}  Rxf6 {[%clk 0:01:15]} 32. dxc7 {[%clk 0:02:11]}  Rf8 {[%clk 0:01:06]} 33. Rd1 {[%clk 0:02:06]}  Bb7 {[%clk 0:00:55]} 34. Rd8 {[%clk 0:02:01]}  Kg7 {[%clk 0:00:55]} 35. Rxf8 {[%clk 0:02:02]}  Kxf8 {[%clk 0:00:56]} 36. Nd5 {[%clk 0:01:56]}  Kf7 {[%clk 0:00:50]} 37. c4 {[%clk 0:01:53]}  Ke8 {[%clk 0:00:45]} 38. f6 {[%clk 0:01:49]}  Kf7 {[%clk 0:00:43]} 39. b4 {[%clk 0:01:47]}  a5 {[%clk 0:00:41]} 40. bxa5 {[%clk 0:01:44]}  Kg8 {[%clk 0:00:39]} 41. c5 {[%clk 0:01:42]}  Kh7 {[%clk 0:00:38]} 42. c6 {[%clk 0:01:43]}  Bc8 {[%clk 0:00:34]} 43. Kc3 {[%clk 0:01:41]}  Kg8 {[%clk 0:00:33]} 44. Kd4 {[%clk 0:01:42]}  Kf7 {[%clk 0:00:33]} 45. Ke5 {[%clk 0:01:43]}  Kg8 {[%clk 0:00:33]} 46. Kd6 {[%clk 0:01:44]}  Kh7 {[%clk 0:00:31]} 47. Ke7 {[%clk 0:01:45]}  Bf5 {[%clk 0:00:25]} 48. a6 {[%clk 0:01:41]}  Bg4 {[%clk 0:00:24]} 49. Nf4 {[%clk 0:01:37]}  Bc8 {[%clk 0:00:20]} 50. a7 {[%clk 0:01:37]}  Bf5 {[%clk 0:00:19]} 51. a4 {[%clk 0:01:36]}  Be6 {[%clk 0:00:20]} 52. a5 {[%clk 0:01:36]}  Bc8 {[%clk 0:00:19]} 53. f7 {[%clk 0:01:32]}  Bb7 {[%clk 0:00:17]} 54. Kf6 {[%clk 0:01:27]}  Ba8 {[%clk 0:00:14]} 55. c8=Q {[%clk 0:01:26]}  Bb7 {[%clk 0:00:12]} 56. a6 {[%clk 0:01:21]}  Bxc6 {[%clk 0:00:08]} 57. Qe6 {[%clk 0:01:10]}  Be8 {[%clk 0:00:06]} 58. a8=Q {[%clk 0:00:46]}  Kh8 {[%clk 0:00:05]} 59. Qaxe8+ {[%clk 0:00:41]}  Kh7 {[%clk 0:00:05]} 60. Qh8+ {[%clk 0:00:42]}  Kxh8 {[%clk 0:00:05]} 61. Qe8+ {[%clk 0:00:43]}  Kh7 {[%clk 0:00:05]} 62. Qh8+ {[%clk 0:00:44]}  Kxh8 {[%clk 0:00:05]} 63. f8=Q+ {[%clk 0:00:45]}  Kh7 {[%clk 0:00:05]} 64. Qf7+ {[%clk 0:00:46]}  Kh8 {[%clk 0:00:06]} 65. Ng6# {[%clk 0:00:47]} 1-0


[Site "https://www.chess.com"]